fUST/lending_fUST_20240905
["ID","MTS","AMOUNT","RATE_DAILY","PERIOD"]
[337231101,1725516645330,-503.07,0.00021917,2]
[337231102,1725516645339,-318.91619087,0.00021917,2]
[337231103,1725516645348,-500.0,0.00021917,2]
[337231104,1725516645357,-500.0,0.00021917,2]
[337231105,1725516645367,-488.69187904,0.00021917,2]
[337231106,1725516645376,-500.0,0.00021917,2]
[337231107,1725516645386,-500.0,0.00021917,2]
[337231108,1725516645395,-831.23,0.00021917,2]
[337231109,1725516645405,-927.27,0.00021917,2]
[337231110,1725516645414,-500.0,0.00021917,2]
[337231111,1725516645424,-500.0,0.00021917,2]
[337231112,1725516645433,-500.0,0.00021917,2]
[337231113,1725516645443,-500.0,0.00021917,2]
[337231114,1725516645453,-876.84,0.00021917,2]
[337231115,1725516645463,-155.58406003,0.00021917,2]
[337231116,1725516645472,-153.762829,0.00021917,2]
[337231117,1725516645482,-500.0,0.00021917,2]
[337231118,1725516645491,-8247.45,0.00021917,2]
[337231119,1725516645501,-175.874032,0.00021917,2]
[337231120,1725516645511,-500.0,0.00021917,2]
[337231121,1725516645520,-500.0,0.00021917,2]
[337231122,1725516645529,-500.0,0.00021917,2]
[337231123,1725516645538,-500.0,0.00021917,2]
[337231124,1725516645548,-348.50879605,0.00021917,2]
[337231125,1725516645558,-1771.81,0.00021917,2]
[337231126,1725516645568,-500.0,0.00021917,2]
[337231127,1725516645577,-500.0,0.00021917,2]
[337231128,1725516645586,-500.0,0.00021917,2]
[337231129,1725516645595,-500.0,0.00021917,2]
[337231130,1725516645604,-500.0,0.00021917,2]
[337231131,1725516645614,-500.0,0.00021917,2]
[337231132,1725516645623,-586.77,0.00021917,2]
[337231133,1725516645632,-1991.802263,0.00021917,2]
[337231134,1725516645642,-500.0,0.00021917,2]
[337231135,1725516645654,-1991.802263,0.00021917,2]
[337231136,1725516645664,-500.0,0.00021917,2]
[337231137,1725516645674,-500.0,0.00021917,2]
[337231138,1725516645683,-500.0,0.00021917,2]
[337231139,1725516645692,-613.55,0.00021917,2]
[337231140,1725516645702,-500.0,0.00021917,2]
[337231141,1725516645711,-2206.74,0.00021917,2]
[337231142,1725516645720,-4382.44,0.00021917,2]
[337231143,1725516645731,-556.12934596,0.00021917,2]
[337231144,1725516645741,-603.55,0.00021917,2]
[337231145,1725516645750,-2238.95,0.00021917,2]
[337231146,1725516645760,-500.0,0.00021917,2]
[337231147,1725516645770,-151.0,0.00021917,2]
[337231148,1725516645779,-560.00296839,0.00021917,2]
[337231149,1725516645788,-711.23,0.00021917,2]
[337231150,1725516645798,-500.0,0.00021917,2]
[337231151,1725516645808,-792.94,0.00021917,2]
[337231152,1725516645818,-500.0,0.00021917,2]
[337231153,1725516645828,-4212.36,0.00021917,2]
[337231154,1725516645837,-500.0,0.00021917,2]
[337231155,1725516645847,-500.0,0.00021917,2]
[337231156,1725516645857,-500.0,0.00021917,2]
[337231157,1725516645866,-500.0,0.00021917,2]
[337231158,1725516645875,-3403.69,0.00021917,2]
[337231159,1725516645885,-609.75,0.00021917,2]
[337231160,1725516645895,-500.0,0.00021917,2]
[337231161,1725516645904,-500.0,0.00021917,2]
[337231162,1725516645914,-500.0,0.00021917,2]
[337231163,1725516645923,-504.91913179,0.00021917,2]
[337231164,1725516645932,-151.0,0.00021917,2]
[337231165,1725516645942,-151.0,0.00021917,2]
[337231166,1725516645952,-151.0,0.00021917,2]
[337231167,1725516645962,-500.0,0.00021917,2]
[337231168,1725516645971,-944.5,0.00021917,2]
[337231169,1725516645981,-735.27,0.00021917,2]
[337231170,1725516645991,-500.0,0.00021917,2]
[337231171,1725516646000,-500.0,0.00021917,2]
[337231172,1725516646009,-500.0,0.00021917,2]
[337231173,1725516646019,-500.0,0.00021917,2]
[337231174,1725516646028,-500.0,0.00021917,2]
[337231175,1725516646038,-4045.01,0.00021917,2]
[337231176,1725516646047,-500.0,0.00021917,2]
[337231177,1725516646058,-614.45,0.00021917,2]
[337231178,1725516646067,-959.3,0.00021917,2]
[337231179,1725516646077,-500.0,0.00021917,2]
[337231180,1725516646086,-500.0,0.00021917,2]
[337231181,1725516646095,-632.51,0.00021917,2]
[337231182,1725516646105,-1587.68,0.00021917,2]
[337231183,1725516646114,-500.0,0.00021917,2]
[337231184,1725516646123,-504.46518338,0.00021917,2]
[337231185,1725516646133,-500.0,0.00021917,2]
[337231186,1725516646142,-520.8,0.00021917,2]
[337231187,1725516646151,-500.0,0.00021917,2]
[337231188,1725516646160,-500.0,0.00021917,2]
[337231189,1725516646169,-516.46,0.00021917,2]
[337231190,1725516646178,-500.0,0.00021917,2]
[337231191,1725516646190,-776.3,0.00021917,2]
[337231192,1725516646200,-2774.701648,0.00021917,2]
[337231193,1725516646210,-500.0,0.00021917,2]
[337231194,1725516646221,-500.0,0.00021917,2]
[337231195,1725516646231,-829.6,0.00021917,2]
[337231196,1725516646243,-2774.701648,0.00021917,2]
[337231198,1725516646252,-516.15,0.00021917,2]
[337231200,1725516646262,-1062.25,0.00021917,2]
[337231202,1725516646271,-500.0,0.00021917,2]
[337231204,1725516646280,-424.32862694,0.00021917,2]
[337231206,1725516646290,-500.0,0.00021917,2]
[337231208,1725516646300,-591.21,0.00021917,2]
[337231210,1725516646312,-500.0,0.00021917,2]
[337231212,1725516646321,-500.0,0.00021917,2]
[337231213,1725516646331,-500.0,0.00021917,2]
[337231214,1725516646341,-500.0,0.00021917,2]
[337231215,1725516646351,-3048.32,0.00021917,2]
[337231216,1725516646360,-500.0,0.00021917,2]
[337231217,1725516646371,-500.0,0.00021917,2]
[337231218,1725516646380,-515.83,0.00021917,2]
[337231219,1725516646389,-722.5,0.00021917,2]
[337231220,1725516646398,-500.0,0.00021917,2]
[337231221,1725516646407,-1669.59,0.00021917,2]
[337231223,1725516646417,-500.0,0.00021917,2]
[337231224,1725516646427,-710.43,0.00021917,2]
[337231225,1725516646436,-500.0,0.00021917,2]
[337231226,1725516646445,-500.0,0.00021917,2]
[337231227,1725516646454,-712.38,0.00021917,2]
[337231228,1725516646463,-500.0,0.00021917,2]
[337231229,1725516646472,-745.1,0.00021917,2]
[337231230,1725516646481,-589.85,0.00021917,2]
[337231231,1725516646491,-500.0,0.00021917,2]
[337231232,1725516646500,-500.0,0.00021917,2]
[337231233,1725516646509,-500.0,0.00021917,2]
[337231234,1725516646518,-8223.33,0.00021917,2]
[337231235,1725516646527,-500.0,0.00021917,2]
[337231236,1725516646537,-500.0,0.00021917,2]
[337231237,1725516646546,-500.0,0.00021917,2]
[337231238,1725516646555,-524.64,0.00021917,2]
[337231239,1725516646565,-500.0,0.00021917,2]
[337231240,1725516646574,-3734.73,0.00021917,2]
[337231241,1725516646583,-500.0,0.00021917,2]
[337231242,1725516646593,-500.0,0.00021917,2]
[337231243,1725516646602,-500.0,0.00021917,2]
[337231244,1725516646612,-500.0,0.00021917,2]
[337231245,1725516646621,-4594.61,0.00021917,2]
[337231246,1725516646630,-846.81,0.00021917,2]
[337231247,1725516646640,-500.0,0.00021917,2]
[337231248,1725516646650,-500.0,0.00021917,2]
[337231249,1725516646660,-500.0,0.00021917,2]
[337231250,1725516646669,-1331.31,0.00021917,2]
[337231251,1725516646679,-500.0,0.00021917,2]
[337231252,1725516646688,-2203.15,0.00021917,2]
[337231253,1725516646698,-500.0,0.00021917,2]
[337231254,1725516646708,-500.0,0.00021917,2]
[337231255,1725516646717,-500.0,0.00021917,2]
[337231256,1725516646731,-500.0,0.00021917,2]
[337231257,1725516646741,-500.0,0.00021917,2]
[337231258,1725516646750,-500.0,0.00021917,2]
[337231259,1725516646760,-774.33,0.00021917,2]
[337231260,1725516646769,-500.0,0.00021917,2]
[337231261,1725516646778,-500.0,0.00021917,2]
[337231262,1725516646787,-500.0,0.00021917,2]
[337231263,1725516646798,-1375.25,0.00021917,2]
[337231264,1725516646809,-500.0,0.00021917,2]
[337231265,1725516646819,-500.0,0.00021917,2]
[337231266,1725516646831,-500.0,0.00021917,2]
[337231267,1725516646843,-529.67,0.00021917,2]
[337231268,1725516646853,-6891.35,0.00021917,2]
[337231269,1725516646863,-500.0,0.00021917,2]
[337231270,1725516646872,-500.0,0.00021917,2]
[337231271,1725516646881,-3337.75,0.00021917,2]
[337231272,1725516646891,-511.68,0.00021917,2]
[337231273,1725516646900,-500.0,0.00021917,2]
[337231274,1725516646911,-500.0,0.00021917,2]
[337231275,1725516646923,-334.64925059,0.00021918,2]
[337231276,1725516646933,-5353.50681955,0.00021927,3]
[337231277,1725516646942,-29396.927,0.00021937,2]
[337231278,1725516646953,-173.417656,0.00021944,2]
[337231279,1725516646963,-150.112233,0.00022,4]
[337231280,1725516646973,-150.0,0.00022055,2]
[337231281,1725516646982,-1084.42593516,0.00022071,2]
[337231282,1725516646991,-151.0,0.00022071,7]
[337231283,1725516647000,-173.417656,0.00022081,2]
[337231284,1725516647010,-153.593277,0.00022082,7]
[337231285,1725516647019,-151.0,0.00022082,2]
[337231286,1725516647029,-151.0,0.00022082,7]
[337231287,1725516647041,-151.0,0.00022082,7]
[337231288,1725516647052,-293.725,0.00022082,2]
[337231289,1725516647065,-558.872,0.00022082,2]
[337231290,1725516647077,-150.112233,0.000221,4]
[337231291,1725516647089,-150.112233,0.000221,5]
[337231292,1725516647101,-150.112233,0.000221,3]
[337231293,1725516647113,-150.112233,0.000221,2]
[337231294,1725516647124,-150.112243,0.000221,2]
[337231295,1725516647134,-151.0,0.00022161,7]
[337231296,1725516647144,-157.360894,0.00022161,7]
[337231297,1725516647155,-1991.802263,0.00022161,7]
[337231298,1725516647168,-1991.802263,0.00022161,7]
[337231299,1725516647181,-151.0,0.00022161,7]
[337231300,1725516647194,-151.0,0.00022161,7]
[337231301,1725516647208,-151.0,0.00022161,7]
[337231302,1725516647221,-2774.701648,0.00022161,7]
[337231303,1725516647234,-2774.701648,0.00022161,7]
[337231304,1725516647246,-152.411139,0.00022171,7]
[337231305,1725516647258,-152.642494,0.00022171,7]
[337231306,1725516647270,-151.0,0.00022171,7]
[337231307,1725516647282,-151.0,0.00022171,7]
[337231308,1725516647293,-212.75,0.00022171,7]
[337231309,1725516647308,-212.75,0.00022171,7]
[337231310,1725516647321,-152.416596,0.00022171,7]
[337231311,1725516647334,-190.705165,0.00022171,7]
[337231312,1725516647349,-190.705165,0.00022171,7]
[337231313,1725516647360,-311.709284,0.00022171,7]
[337231314,1725516647372,-311.709284,0.00022171,7]
[337231315,1725516647383,-500.0,0.00022173,2]
[337231316,1725516647393,-245.38872763,0.0002219,2]
[337231317,1725516647404,-500.0,0.0002219,2]
[337231318,1725516647415,-500.0,0.0002219,2]
[337231319,1725516647427,-500.0,0.0002219,2]
[337231320,1725516647440,-391.29242598,0.0002219,2]
[337231321,1725516647452,-500.0,0.00022191,2]
[337231322,1725516647463,-533.99,0.00022191,2]
[337231323,1725516647475,-500.0,0.00022191,2]
[337231324,1725516647487,-500.0,0.00022191,2]
[337231325,1725516647498,-500.0,0.00022191,2]
[337231326,1725516647510,-295.26271415,0.00022191,2]
[337231327,1725516647520,-500.0,0.00022191,2]
[337231328,1725516647530,-500.0,0.00022191,2]
[337231329,1725516647541,-500.0,0.00022191,2]
[337231330,1725516647551,-500.0,0.00022191,2]
[337231331,1725516647563,-500.0,0.00022191,2]
[337231332,1725516647574,-500.0,0.00022191,2]
[337231333,1725516647584,-500.0,0.00022191,2]
[337231334,1725516647595,-977.98,0.00022191,2]
[337231335,1725516647607,-500.0,0.00022191,2]
[337231336,1725516647618,-500.0,0.00022191,2]
[337231337,1725516647629,-879.77,0.00022191,2]
[337231338,1725516647641,-500.0,0.00022191,2]
[337231339,1725516647654,-500.0,0.00022191,2]
[337231340,1725516647666,-500.0,0.00022191,2]
[337231341,1725516647677,-500.0,0.00022191,2]
[337231342,1725516647689,-693.4,0.00022191,2]
[337231343,1725516647700,-500.0,0.00022191,2]
[337231344,1725516647711,-213.79405552,0.00022191,2]
[337231345,1725516647723,-484.69824446,0.00022191,2]
[337231346,1725516647735,-500.0,0.00022191,2]
[337231347,1725516647748,-500.0,0.00022191,2]
[337231348,1725516647759,-500.0,0.00022191,2]
[337231349,1725516647769,-500.0,0.00022191,2]
[337231350,1725516647779,-500.0,0.00022191,2]
[337231351,1725516647789,-500.0,0.00022191,2]
[337231352,1725516647799,-500.0,0.00022191,2]
[337231353,1725516647811,-500.0,0.00022191,2]
[337231354,1725516647821,-500.0,0.00022191,2]
[337231355,1725516647831,-500.0,0.00022191,2]
[337231356,1725516647843,-500.0,0.00022191,2]
[337231357,1725516647854,-500.0,0.00022191,2]
[337231358,1725516647865,-500.0,0.00022191,2]
[337231359,1725516647876,-583.41,0.00022191,2]
[337231360,1725516647887,-521.96138592,0.00022191,2]
[337231361,1725516647897,-500.0,0.00022191,2]
[337231362,1725516647907,-500.0,0.00022191,2]
[337231363,1725516647917,-675.41,0.00022191,2]
[337231364,1725516647927,-500.0,0.00022191,2]
[337231365,1725516647939,-500.0,0.00022191,2]
[337231366,1725516647949,-283.96833797,0.00022191,2]
[337231367,1725516647959,-500.0,0.00022191,2]
[337231368,1725516647970,-225.82180188,0.00022191,2]
[337231369,1725516647981,-500.0,0.00022191,2]
[337231370,1725516647992,-500.0,0.00022191,2]
[337231371,1725516648002,-500.0,0.00022191,2]
[337231372,1725516648012,-500.0,0.00022191,2]
[337231373,1725516648022,-573.5611747,0.00022191,2]
[337231374,1725516648032,-500.0,0.00022191,2]
[337231375,1725516648042,-500.0,0.00022191,2]
[337231376,1725516648052,-500.0,0.00022191,2]
[337231377,1725516648064,-500.0,0.00022191,2]
[337231378,1725516648075,-500.0,0.00022191,2]
[337231379,1725516648085,-837.75,0.00022191,2]
[337231380,1725516648095,-537.42656629,0.00022191,2]
[337231381,1725516648106,-500.0,0.00022191,2]
[337231382,1725516648116,-520.26404887,0.00022191,2]
[337231383,1725516648127,-532.86,0.00022191,2]
[337231384,1725516648136,-500.0,0.00022191,2]
[337231385,1725516648147,-810.43,0.00022191,2]
[337231386,1725516648157,-212.75,0.00022191,7]
[337231387,1725516648167,-500.0,0.00022191,2]
[337231388,1725516648177,-212.75,0.00022191,7]
[337231389,1725516648187,-669.02,0.00022191,2]
[337231390,1725516648197,-500.0,0.00022191,2]
[337231391,1725516648208,-500.0,0.00022191,2]
[337231392,1725516648218,-500.0,0.00022191,2]
[337231393,1725516648228,-190.705165,0.00022191,7]
[337231394,1725516648239,-190.705165,0.00022191,7]
[337231395,1725516648250,-500.0,0.00022191,2]
[337231396,1725516648260,-311.709284,0.00022191,7]
[337231397,1725516648271,-1155.01,0.00022191,2]
[337231398,1725516648281,-721.13,0.00022191,2]
[337231399,1725516648291,-311.709284,0.00022191,7]
[337231400,1725516648301,-500.0,0.00022191,2]
[337231401,1725516648313,-548.74777732,0.00022191,2]
[337231402,1725516648323,-500.0,0.00022191,2]
[337231403,1725516648333,-500.0,0.00022191,2]
[337231404,1725516648343,-513.05,0.00022191,2]
[337231405,1725516648356,-500.0,0.00022191,2]
[337231406,1725516648367,-683.83,0.00022191,2]
[337231407,1725516648377,-500.0,0.00022191,2]
[337231408,1725516648387,-500.0,0.00022191,2]
[337231409,1725516648397,-681.83,0.00022191,2]
[337231410,1725516648407,-500.0,0.00022191,2]
[337231411,1725516648417,-500.0,0.00022191,2]
[337231412,1725516648427,-500.0,0.00022191,2]
[337231413,1725516648438,-500.0,0.00022191,2]
[337231414,1725516648448,-500.0,0.00022191,2]
[337231415,1725516648458,-778.43,0.00022191,2]
[337231416,1725516648469,-500.0,0.00022191,2]
[337231417,1725516648479,-643.82314167,0.00022191,2]
[337231418,1725516648489,-500.0,0.00022191,2]
[337231419,1725516648499,-729.43,0.00022191,2]
[337231420,1725516648509,-500.0,0.00022191,2]
[337231421,1725516648519,-500.0,0.00022191,2]
[337231422,1725516648530,-500.0,0.00022191,2]
[337231423,1725516648540,-531.59398104,0.00022191,2]
[337231424,1725516648550,-500.0,0.00022191,2]
[337231425,1725516648561,-193.86439457,0.00022191,2]
[337231426,1725516648572,-500.0,0.00022191,2]
[337231427,1725516648582,-644.35,0.00022191,2]
[337231428,1725516648593,-706.13,0.00022191,2]
[337231429,1725516648604,-503.07,0.00022191,2]
[337231430,1725516648614,-500.0,0.00022191,2]
[337231431,1725516648625,-500.0,0.00022191,2]
[337231432,1725516648635,-500.0,0.00022191,2]
[337231433,1725516648647,-500.0,0.00022191,2]
[337231434,1725516648660,-831.23,0.00022191,2]
[337231435,1725516648670,-927.27,0.00022191,2]
[337231436,1725516648681,-500.0,0.00022191,2]
[337231437,1725516648691,-477.99666185,0.00022191,2]
[337231438,1725516648702,-347.17091243,0.00022191,2]
[337231439,1725516648712,-500.0,0.00022191,2]
[337231440,1725516648722,-876.84,0.00022191,2]
[337231441,1725516648735,-500.0,0.00022191,2]
[337231442,1725516648746,-8247.45,0.00022191,2]
[337231443,1725516648756,-500.0,0.00022191,2]
[337231444,1725516648767,-500.0,0.00022191,2]
[337231445,1725516648777,-500.0,0.00022191,2]
[337231446,1725516648788,-500.0,0.00022191,2]
[337231447,1725516648798,-1771.81,0.00022191,2]
[337231448,1725516648809,-500.0,0.00022191,2]
[337231449,1725516648819,-500.0,0.00022191,2]
[337231450,1725516648830,-500.0,0.00022191,2]
[337231451,1725516648840,-500.0,0.00022191,2]
[337231452,1725516648851,-500.0,0.00022191,2]
[337231453,1725516648862,-500.0,0.00022191,2]
[337231454,1725516648872,-586.77,0.00022191,2]
[337231455,1725516648884,-1991.802263,0.00022191,7]
[337231456,1725516648896,-1991.802263,0.00022191,7]
[337231457,1725516648907,-500.0,0.00022191,2]
[337231458,1725516648917,-1991.802263,0.00022191,7]
[337231459,1725516648928,-1991.802263,0.00022191,7]
[337231460,1725516648938,-156.54102577,0.00022191,2]
[337231461,1725516648949,-500.0,0.00022191,2]
[337231462,1725516648960,-500.0,0.00022191,2]
[337231463,1725516648971,-613.55,0.00022191,2]
[337231464,1725516648982,-500.0,0.00022191,2]
[337231465,1725516648993,-2206.74,0.00022191,2]
[337231466,1725516649003,-4382.44,0.00022191,2]
[337231467,1725516649015,-603.55,0.00022191,2]
[337231468,1725516649026,-2238.95,0.00022191,2]
[337231469,1725516649036,-500.0,0.00022191,2]
[337231470,1725516649049,-151.0,0.00022191,7]
[337231471,1725516649060,-175.787798,0.00022191,7]
[337231472,1725516649070,-711.23,0.00022191,2]
[337231473,1725516649080,-500.0,0.00022191,2]
[337231474,1725516649090,-792.94,0.00022191,2]
[337231475,1725516649100,-500.0,0.00022191,2]
[337231476,1725516649111,-4212.36,0.00022191,2]
[337231477,1725516649122,-500.0,0.00022191,2]
[337231478,1725516649133,-3403.69,0.00022191,2]
[337231479,1725516649143,-609.75,0.00022191,2]
[337231480,1725516649154,-500.0,0.00022191,2]
[337231481,1725516649164,-500.0,0.00022191,2]
[337231482,1725516649174,-267.99785209,0.00022191,2]
[337231483,1725516649185,-151.0,0.00022191,7]
[337231484,1725516649195,-151.0,0.00022191,7]
[337231485,1725516649206,-151.0,0.00022191,7]
[337231486,1725516649216,-151.0,0.00022191,7]
[337231487,1725516649227,-500.0,0.00022191,2]
[337231488,1725516649237,-944.5,0.00022191,2]
[337231489,1725516649248,-735.27,0.00022191,2]
[337231490,1725516649258,-500.0,0.00022191,2]
[337231491,1725516649268,-500.0,0.00022191,2]
[337231492,1725516649278,-500.0,0.00022191,2]
[337231493,1725516649288,-500.0,0.00022191,2]
[337231494,1725516649299,-500.0,0.00022191,2]
[337231495,1725516649310,-4045.01,0.00022191,2]
[337231496,1725516649321,-500.0,0.00022191,2]
[337231497,1725516649332,-614.45,0.00022191,2]
[337231498,1725516649343,-959.3,0.00022191,2]
[337231499,1725516649354,-500.0,0.00022191,2]
[337231500,1725516649364,-500.0,0.00022191,2]
[337231501,1725516649375,-632.51,0.00022191,2]
[337231502,1725516649386,-1587.68,0.00022191,2]
[337231503,1725516649397,-524.67786808,0.00022191,2]
[337231504,1725516649407,-500.0,0.00022191,2]
[337231505,1725516649417,-520.8,0.00022191,2]
[337231506,1725516649428,-500.0,0.00022191,2]
[337231507,1725516649438,-516.46,0.00022191,2]
[337231508,1725516649448,-776.3,0.00022191,2]
[337231509,1725516649459,-2774.701648,0.00022191,7]
[337231510,1725516649470,-500.0,0.00022191,2]
[337231511,1725516649480,-2774.701648,0.00022191,7]
[337231512,1725516649491,-500.0,0.00022191,2]
[337231513,1725516649502,-829.6,0.00022191,2]
[337231514,1725516649512,-516.15,0.00022191,2]
[337231515,1725516649522,-2774.701648,0.00022191,7]
[337231516,1725516649532,-2774.701648,0.00022191,7]
[337231517,1725516649543,-1062.25,0.00022191,2]
[337231518,1725516649553,-500.0,0.00022191,2]
[337231519,1725516649565,-514.89651299,0.00022191,2]
[337231520,1725516649576,-591.21,0.00022191,2]
[337231521,1725516649587,-500.0,0.00022191,2]
[337231522,1725516649597,-500.0,0.00022191,2]
[337231523,1725516649608,-500.0,0.00022191,2]
[337231524,1725516649619,-439.46926479,0.00022191,2]
[337231525,1725516649630,-3048.32,0.00022191,2]
[337231526,1725516649640,-360.40178616,0.00022191,2]
[337231527,1725516649653,-500.0,0.00022191,2]
[337231528,1725516649663,-515.83,0.00022191,2]
[337231529,1725516649674,-722.5,0.00022191,2]
[337231530,1725516649685,-500.0,0.00022191,2]
[337231531,1725516649695,-1669.59,0.00022191,2]
[337231532,1725516649706,-500.0,0.00022191,2]
[337231533,1725516649716,-710.43,0.00022191,2]
[337231534,1725516649726,-500.0,0.00022191,2]
[337231535,1725516649737,-500.0,0.00022191,2]
[337231536,1725516649747,-712.38,0.00022191,2]
[337231537,1725516649757,-500.0,0.00022191,2]
[337231538,1725516649767,-745.1,0.00022191,2]
[337231539,1725516649777,-589.85,0.00022191,2]
[337231540,1725516649788,-500.0,0.00022191,2]
[337231541,1725516649798,-500.0,0.00022191,2]
[337231542,1725516649810,-500.0,0.00022191,2]
[337231543,1725516649820,-8223.33,0.00022191,2]
[337231544,1725516649830,-500.0,0.00022191,2]
[337231545,1725516649840,-500.0,0.00022191,2]
[337231546,1725516649850,-151.0,0.00022191,7]
[337231547,1725516649861,-524.64,0.00022191,2]
[337231548,1725516649872,-500.0,0.00022191,2]
[337231549,1725516650160,-500.0,0.00022191,2]
[337231550,1725516650177,-3734.73,0.00022191,2]
[337231551,1725516650186,-500.0,0.00022191,2]
[337231552,1725516650195,-500.0,0.00022191,2]
[337231553,1725516650205,-153.912629,0.00022191,7]
[337231554,1725516650215,-153.912629,0.00022191,7]
[337231555,1725516650224,-500.0,0.00022191,2]
[337231556,1725516650234,-500.0,0.00022191,2]
[337231557,1725516650244,-151.0,0.00022191,7]
[337231558,1725516650254,-4594.61,0.00022191,2]
[337231559,1725516650263,-846.81,0.00022191,2]
[337231560,1725516650273,-153.912629,0.00022191,7]
[337231561,1725516650283,-500.0,0.00022191,2]
[337231562,1725516650293,-153.912629,0.00022191,7]
[337231563,1725516650303,-500.0,0.00022191,2]
[337231564,1725516650313,-500.0,0.00022191,2]
[337231565,1725516650323,-1331.31,0.00022191,2]
[337231566,1725516650332,-500.0,0.00022191,2]
[337231567,1725516650343,-2203.15,0.00022191,2]
[337231568,1725516650353,-500.0,0.00022191,2]
[337231569,1725516650363,-500.0,0.00022191,2]
[337231570,1725516650373,-500.0,0.00022191,2]
[337231571,1725516650382,-500.0,0.00022191,2]
[337231572,1725516650392,-500.0,0.00022191,2]
[337231573,1725516650403,-500.0,0.00022191,2]
[337231574,1725516650413,-774.33,0.00022191,2]
[337231575,1725516650423,-500.0,0.00022191,2]
[337231576,1725516650433,-500.0,0.00022191,2]
[337231577,1725516650442,-500.0,0.00022191,2]
[337231578,1725516650454,-1375.25,0.00022191,2]
[337231579,1725516650463,-500.0,0.00022191,2]
[337231580,1725516650474,-500.0,0.00022191,2]
[337231581,1725516650483,-500.0,0.00022191,2]
[337231582,1725516650493,-529.67,0.00022191,2]
[337231583,1725516650502,-6891.35,0.00022191,2]
[337231584,1725516650512,-500.0,0.00022191,2]
[337231585,1725516650521,-500.0,0.00022191,2]
[337231586,1725516650530,-3337.75,0.00022191,2]
[337231587,1725516650540,-511.68,0.00022191,2]
[337231588,1725516650550,-500.0,0.00022191,2]
[337231589,1725516650560,-500.0,0.00022191,2]
[337231590,1725516650569,-150.112233,0.000222,4]
[337231591,1725516650579,-150.112233,0.000222,5]
[337231592,1725516650589,-150.112233,0.000222,4]
[337231593,1725516650600,-150.112233,0.000223,3]
[337231594,1725516650609,-150.112233,0.000223,4]
[337231595,1725516650619,-150.112233,0.000223,3]
[337231596,1725516650628,-150.112233,0.000224,2]
[337231597,1725516650638,-150.112233,0.000224,3]
[337231598,1725516650648,-151.0,0.00022455,7]
[337231599,1725516650660,-500.0,0.00022465,2]
[337231600,1725516650669,-533.99,0.00022465,2]
[337231601,1725516650678,-500.0,0.00022465,2]
[337231602,1725516650688,-500.0,0.00022465,2]
[337231603,1725516650698,-500.0,0.00022465,2]
[337231604,1725516650707,-500.0,0.00022465,2]
[337231605,1725516650717,-500.0,0.00022465,2]
[337231606,1725516650730,-500.0,0.00022465,2]
[337231607,1725516650739,-500.0,0.00022465,2]
[337231608,1725516650748,-500.0,0.00022465,2]
[337231609,1725516650757,-500.0,0.00022465,2]